bitfinex/quotes_SOLUSD_20230703
["timestamp","ask_amount","ask_price","bid_price","bid_amount"]
[1688391090441,22.061,19.174,19.166,22.069]
[1688391091146,22.055,19.179,19.166,22.069]
[1688391091456,22.055,19.179,19.172,22.063]
[1688391091651,16.1,19.2,19.172,78.864]
[1688391091856,56.768,19.187,19.172,78.864]
[1688391092255,56.768,19.187,19.177,182.455]
[1688391092455,56.768,19.187,19.18,22.053]
[1688391092847,22.042,19.19,19.181,20.0]
[1688391093145,22.04,19.193,19.183,22.049]
[1688391093346,56.726,19.198,19.183,22.049]
[1688391093553,22.034,19.198,19.183,22.049]
[1688391093865,22.034,19.198,19.183,78.818]
[1688391094358,22.034,19.198,19.183,22.049]
[1688391094359,78.758,19.198,19.183,22.049]
[1688391094753,22.034,19.198,19.183,22.049]
[1688391095666,125.534,19.198,19.183,22.049]
[1688391096541,229.845265,19.198,19.183,22.049]
[1688391096741,125.534,19.198,19.183,22.049]
[1688391096943,22.034,19.198,19.183,22.049]
[1688391097553,16.2,19.21,19.184,55.0]
[1688391097868,56.721,19.207,19.191,182.318]
[1688391098154,22.027,19.204,19.191,182.318]
[1688391098359,22.028,19.203,19.195,22.036]
[1688391101760,56.703,19.209,19.195,22.036]
[1688391101969,22.024,19.207,19.195,22.036]
[1688391102473,78.722,19.207,19.195,22.036]
[1688391104366,55.0,19.206,19.195,22.036]
[1688391104567,22.028,19.203,19.195,22.036]
[1688391104866,22.025,19.205,19.195,22.036]
[1688391105463,78.728,19.205,19.195,22.036]
[1688391108961,22.029,19.202,19.195,22.036]
[1688391109463,22.029,19.202,19.194,22.037]
[1688391109664,55.0,19.201,19.194,22.037]
[1688391109966,78.753,19.199,19.189,22.043]
[1688391110358,78.769,19.195,19.188,22.044]
[1688391110573,78.769,19.195,19.187,22.045]
[1688391111060,78.769,19.195,19.186,22.046]
[1688391111255,22.036,19.195,19.186,22.046]
[1688391112981,55.0,19.194,19.182,22.051]
[1688391113176,22.04,19.192,19.182,22.051]
[1688391113859,56.732,19.201,19.182,22.051]
[1688391114466,56.714,19.202,19.182,22.051]
[1688391114970,56.714,19.202,19.183,55.0]
[1688391115168,125.514,19.201,19.188,22.044]
[1688391117576,182.271,19.197,19.187,22.045]
[1688391117776,182.271,19.197,19.184,56.763]
[1688391118766,182.271,19.197,19.187,22.045]
[1688391121081,55.0,19.196,19.181,93.2328]
[1688391121384,22.041,19.192,19.181,93.2328]
[1688391121575,22.041,19.192,19.181,115.2858]
[1688391122996,22.04,19.193,19.185,22.048]
[1688391123367,103.497,19.199,19.185,22.048]
[1688391123587,22.039,19.193,19.185,22.048]
[1688391125075,22.039,19.193,19.181,93.2328]
[1688391125389,55.0,19.192,19.182,22.051]
[1688391125587,22.043,19.189,19.182,22.051]
[1688391126172,22.043,19.189,19.181,22.052]
[1688391126482,125.591,19.189,19.181,22.053]
[1688391127070,22.043,19.189,19.181,22.053]
[1688391127976,55.0,19.188,19.176,56.789]
[1688391128185,22.049,19.185,19.178,22.055]
[1688391128597,22.049,19.185,19.174,56.795]
[1688391128886,22.049,19.185,19.176,22.057]
[1688391129090,22.052,19.182,19.176,22.057]
[1688391130590,22.052,19.182,19.175,22.058]
[1688391131780,22.052,19.182,19.175,22.059]
[1688391132687,22.052,19.182,19.171,92.8918]
[1688391132885,22.052,19.182,19.167,56.815]
[1688391133198,55.0,19.181,19.166,92.4408]
[1688391133374,78.846,19.177,19.167,22.068]
[1688391134089,22.058,19.177,19.167,22.068]
[1688391140298,22.058,19.177,19.154,25.96703911]
[1688391140590,182.527,19.17,19.158,22.078]
[1688391140893,182.527,19.17,19.157,22.079]
[1688391141110,55.0,19.169,19.156,22.08]
[1688391141296,182.571,19.166,19.13,466.5]
[1688391141598,182.622,19.16,19.147,91.908]
[1688391141787,182.622,19.16,19.148,20.0]
[1688391142094,182.622,19.16,19.148,22.09]
[1688391142292,182.622,19.16,19.149,20.0]
[1688391142505,182.622,19.16,19.15,22.088]
[1688391142995,182.622,19.16,19.151,20.0]
[1688391143201,182.622,19.16,19.143,47.30605075]
[1688391143494,56.825,19.165,19.151,182.704]
[1688391143699,22.077,19.161,19.151,182.704]
[1688391144085,16.2,19.17,19.151,182.704]
[1688391144286,22.076,19.161,19.151,182.704]
[1688391145098,22.076,19.161,19.151,78.95]
[1688391145398,22.076,19.161,19.145,56.879]
[1688391145711,71.2,19.16,19.145,19.6194605]
[1688391145910,182.661,19.156,19.145,19.6194605]
[1688391146899,22.082,19.156,19.145,19.6194605]
[1688391147502,75.0,19.155,19.137,22.102]
[1688391147805,75.0,19.155,19.133,103.849]
[1688391147806,182.718,19.15,19.133,56.914]
[1688391148004,198.848,19.15,19.136,22.104]
[1688391148689,182.718,19.15,19.136,22.104]
[1688391149493,182.718,19.15,19.136,125.939]
[1688391150786,182.718,19.15,19.136,22.104]
[1688391150987,182.763,19.145,19.134,22.106]
[1688391151188,55.0,19.144,19.118,71.2629925]
[1688391151397,55.0,19.149,19.121,95.4881]
[1688391151398,16.2,19.14,19.121,95.4881]
[1688391151607,182.868,19.134,19.121,95.4881]
[1688391151903,182.868,19.134,19.119,20.0]
[1688391152102,182.868,19.134,19.119,22.124]
[1688391152405,182.868,19.134,19.12,20.0]
[1688391152611,182.868,19.134,19.122,22.12]
[1688391153813,68.65343989,19.15,19.122,22.12]
[1688391153814,16.2,19.16,19.122,22.12]
[1688391154015,56.888,19.143,19.122,22.12]
[1688391154306,78.984,19.143,19.129,22.113]
[1688391154512,22.096,19.143,19.129,22.113]
[1688391154894,22.096,19.143,19.132,22.108]
[1688391155702,22.095,19.144,19.132,182.885]
[1688391155918,22.095,19.145,19.132,182.885]
[1688391156121,22.095,19.145,19.136,22.104]
[1688391158705,160.611,19.152,19.136,22.104]
[1688391158913,22.091,19.148,19.137,75.0]
[1688391159114,22.091,19.148,19.133,96.3476]
[1688391159696,22.091,19.148,19.12,16.13]
[1688391159994,22.091,19.148,19.129,125.985]
[1688391160194,22.091,19.148,19.134,22.106]
[1688391160403,182.78,19.144,19.134,22.106]
[1688391160600,78.994,19.141,19.134,22.106]
[1688391160798,22.099,19.141,19.134,22.106]
[1688391160999,22.099,19.141,19.133,22.107]
[1688391161302,22.099,19.141,19.134,22.106]
[1688391162624,22.099,19.141,19.13,93.5094]
[1688391162798,22.099,19.141,19.131,20.0]
[1688391163117,22.099,19.141,19.132,22.108]
[1688391165611,78.992,19.141,19.132,22.108]
[1688391165811,22.099,19.141,19.132,22.108]
[1688391166511,22.098,19.142,19.132,22.108]
[1688391167400,67.71319922,19.147,19.132,22.108]
[1688391167600,22.097,19.143,19.132,22.108]
[1688391174410,22.096,19.144,19.132,22.108]
[1688391174613,22.096,19.144,19.132,32.94519922]
[1688391175724,22.096,19.144,19.132,22.108]
[1688391178517,56.88,19.151,19.133,55.0]
[1688391178725,56.5946,19.16,19.133,55.0]
[1688391178726,56.86,19.153,19.138,182.825]
[1688391179023,56.86,19.153,19.139,20.0]
[1688391179233,22.089,19.15,19.143,78.983]
[1688391180411,22.088,19.151,19.143,78.983]
[1688391180923,16.2,19.16,19.143,78.983]
[1688391181116,22.082,19.156,19.143,78.983]
[1688391181716,44.4525,19.16,19.143,78.983]
[1688391181717,22.081,19.157,19.143,78.983]
[1688391182018,56.83,19.163,19.144,85.83719922]
[1688391182216,22.078,19.159,19.149,182.717]
[1688391182416,22.078,19.16,19.15,117.3856]
[1688391182623,22.078,19.16,19.153,22.085]
[1688391183220,22.076,19.161,19.153,22.085]
[1688391186129,22.079,19.158,19.153,22.085]
[1688391186318,22.079,19.159,19.153,22.085]
[1688391186937,78.929,19.157,19.152,51.86]
[1688391187131,22.084,19.154,19.149,22.089]
[1688391187316,22.084,19.154,19.147,22.091]
[1688391187712,78.938,19.154,19.147,22.091]
[1688391188235,22.084,19.154,19.147,22.091]
[1688391189530,22.084,19.154,19.145,22.093]
[1688391189735,55.0,19.153,19.139,56.898]
[1688391190028,55.0,19.153,19.105,27.13341135]
[1688391190029,78.96,19.149,19.135,56.91]
[1688391190228,78.96,19.149,19.133,103.851]
[1688391190229,78.96,19.149,19.137,22.102]
[1688391190421,55.0,19.148,19.136,22.104]
[1688391190623,182.766,19.145,19.136,22.104]
[1688391192128,182.766,19.145,19.132,56.92]
[1688391192320,55.0,19.144,19.134,22.106]
[1688391192522,78.992,19.141,19.133,22.107]
[1688391192831,78.992,19.141,19.134,22.106]
[1688391193334,22.099,19.141,19.134,22.106]
[1688391193837,22.097,19.143,19.134,22.106]
[1688391194032,160.637,19.149,19.135,55.0]
[1688391194335,160.637,19.149,19.139,22.101]
[1688391194336,22.095,19.145,19.139,22.101]
[1688391196135,22.095,19.145,19.136,22.103]
[1688391196439,22.095,19.145,19.132,22.109]
[1688391196622,78.994,19.141,19.132,22.109]
[1688391199445,78.994,19.141,19.128,96.7677]
[1688391199646,78.994,19.141,19.098,397.45479368]
[1688391199647,87.52,19.14,19.121,96.7374]
[1688391199947,182.863,19.135,19.124,22.118]
[1688391200243,182.863,19.135,19.115,103.947]
[1688391200437,55.0,19.134,19.115,103.947]
[1688391200645,79.044,19.129,19.121,22.122]
[1688391200942,79.044,19.129,19.12,22.122]
[1688391201151,22.116,19.126,19.12,22.122]
[1688391201852,22.116,19.126,19.121,20.0]
[1688391202031,22.116,19.126,19.122,22.12]
[1688391202742,22.116,19.126,19.121,42.121]
[1688391203230,22.116,19.126,19.121,22.121]
[1688391203833,22.112,19.13,19.121,22.121]
[1688391204836,22.112,19.13,19.121,22.122]
[1688391206953,56.918,19.135,19.121,22.122]
[1688391207148,56.91,19.136,19.121,22.122]
[1688391207351,22.109,19.133,19.121,22.122]
[1688391207541,56.904,19.138,19.121,22.122]
[1688391207734,22.107,19.135,19.121,22.122]
[1688391207950,22.107,19.135,19.121,112.1711]
[1688391208355,103.827,19.14,19.121,112.1711]
[1688391208356,22.105,19.136,19.122,55.0]
[1688391208555,22.105,19.136,19.127,79.047]
[1688391211545,56.887,19.143,19.127,79.047]
[1688391211743,22.102,19.139,19.128,20.0]
[1688391211950,22.102,19.139,19.131,22.11]
[1688391214659,113.808,19.145,19.131,22.11]
[1688391214959,22.095,19.145,19.131,22.11]
[1688391215657,22.095,19.145,19.131,121.3228]
[1688391216250,78.976,19.145,19.131,121.3228]
[1688391218037,55.0,19.144,19.131,121.3228]
[1688391218241,182.806,19.141,19.131,121.3228]
[1688391218454,182.806,19.141,19.131,22.11]
[1688391219164,182.806,19.141,19.126,103.886]
[1688391219349,182.806,19.141,19.13,22.11]
[1688391220048,22.1,19.141,19.13,22.11]
[1688391221760,32.48,19.148,19.13,54.7]
[1688391221969,89.354,19.148,19.13,54.7]
[1688391222664,22.096,19.144,19.13,153.6947]
[1688391223947,78.98,19.144,19.13,153.6947]
[1688391228165,78.98,19.144,19.134,79.018]
[1688391228375,22.096,19.144,19.134,79.018]
[1688391228751,56.873,19.148,19.134,79.018]
[1688391229053,22.096,19.144,19.134,79.018]
[1688391229768,22.096,19.144,19.134,22.106]
[1688391231167,103.775,19.151,19.134,22.106]
[1688391231168,22.093,19.147,19.134,22.106]
[1688391231347,22.093,19.147,19.131,55.0]
[1688391231348,56.865,19.151,19.139,78.997]
[1688391231550,22.089,19.15,19.144,22.095]
[1688391231774,22.088,19.151,19.144,22.095]
[1688391232466,44.45250025,19.162,19.144,22.095]
[1688391232772,22.087,19.152,19.144,22.095]
[1688391232954,22.086,19.152,19.144,22.095]
[1688391233156,22.085,19.153,19.144,22.095]
[1688391236161,56.85,19.159,19.144,22.095]
[1688391236358,51.86,19.175,19.14,64.7]
[1688391236359,56.829,19.163,19.149,182.722]
[1688391236571,56.829,19.163,19.155,22.082]
[1688391237759,22.078,19.16,19.155,22.082]
[1688391237974,56.829,19.163,19.155,22.082]
[1688391238365,22.076,19.161,19.155,22.082]
[1688391238567,22.075,19.162,19.155,22.082]
[1688391238975,22.075,19.162,19.15,97.1262]
[1688391239475,22.075,19.162,19.151,20.0]
[1688391240060,22.075,19.162,19.152,22.086]
[1688391241977,22.075,19.162,19.152,125.834]
[1688391242383,22.075,19.162,19.152,22.086]
[1688391244690,56.813,19.169,19.152,22.086]
[1688391244882,22.074,19.163,19.152,22.086]
[1688391245691,56.816,19.167,19.152,22.086]
[1688391245990,22.073,19.163,19.152,22.086]
[1688391246392,22.073,19.163,19.156,78.93]
[1688391246772,22.072,19.164,19.156,78.93]
[1688391247092,56.813,19.169,19.156,78.93]
[1688391247293,22.071,19.166,19.156,78.93]
[1688391247493,22.071,19.166,19.159,22.077]
[1688391248385,22.065,19.171,19.16,20.0]
[1688391248594,22.065,19.171,19.163,22.073]
[1688391249186,56.797,19.174,19.163,22.073]
[1688391249569,22.065,19.171,19.163,22.073]
[1688391249886,22.065,19.171,19.16,56.835]
[1688391250078,65.83719922,19.17,19.155,56.849]
[1688391250280,78.89,19.166,19.152,95.9542]
[1688391250478,55.0,19.165,19.152,95.9542]
[1688391250686,182.603,19.162,19.152,118.0392]
[1688391250989,182.603,19.162,19.152,22.085]
[1688391251796,22.075,19.162,19.152,22.085]
[1688391252299,67.69819922,19.167,19.152,22.085]
[1688391252591,22.075,19.162,19.152,22.085]
[1688391260794,22.073,19.163,19.152,22.085]
[1688391260982,56.82,19.166,19.152,22.085]
[1688391261499,22.075,19.162,19.152,22.085]
[1688391262395,22.069,19.167,19.152,22.085]
[1688391262595,160.451,19.171,19.152,22.085]
[1688391262596,56.809,19.17,19.153,55.0]
[1688391262893,22.069,19.167,19.158,22.079]
[1688391266896,22.068,19.168,19.159,20.0]
[1688391267102,22.068,19.169,19.161,78.907]
[1688391267295,22.068,19.169,19.162,55.0]
[1688391267504,22.066,19.17,19.164,22.072]
[1688391267705,22.064,19.171,19.164,22.072]
[1688391268002,56.794,19.175,19.164,22.072]
[1688391268003,22.064,19.172,19.165,55.0]
[1688391268205,22.064,19.172,19.167,22.069]
[1688391270095,22.063,19.173,19.167,22.069]
[1688391270408,22.061,19.174,19.167,22.069]
[1688391272207,22.061,19.174,19.162,160.521]
[1688391272407,22.061,19.174,19.163,55.0]
[1688391272590,22.061,19.174,19.166,22.069]
[1688391277798,22.061,19.174,19.16,99.2889]
[1688391278115,22.065,19.17,19.162,22.074]
[1688391278293,22.065,19.17,19.158,56.841]
[1688391278502,55.0,19.169,19.151,94.0915]
[1688391278718,55.0,19.169,19.14,64.74]
[1688391278719,78.899,19.164,19.155,22.082]
[1688391279598,22.073,19.164,19.155,22.082]
[1688391280396,22.073,19.164,19.156,55.0]
[1688391280618,22.073,19.164,19.158,22.079]
[1688391280796,22.072,19.165,19.158,22.079]
[1688391281915,22.072,19.165,19.153,56.856]
[1688391282100,22.072,19.165,19.154,55.0]
[1688391282299,22.072,19.165,19.156,22.081]
[1688391284097,56.813,19.168,19.156,78.93]
[1688391284405,22.071,19.166,19.156,78.93]
[1688391284810,113.621,19.172,19.156,78.93]
[1688391285010,22.067,19.169,19.157,75.0]
[1688391285321,22.066,19.17,19.16,182.613]
[1688391285519,22.066,19.17,19.161,20.0]
[1688391285701,22.066,19.17,19.163,22.072]
[1688391289421,22.066,19.17,19.161,22.075]
[1688391289627,22.066,19.17,19.156,56.848]
[1688391290310,22.066,19.17,19.16,22.076]
[1688391293818,54.656,19.17,19.152,98.4868]
[1688391294023,182.576,19.165,19.154,22.083]
[1688391294630,182.576,19.165,19.152,98.4868]
[1688391294818,182.576,19.165,19.145,56.878]
[1688391295015,68.11,19.17,19.14,52.37]
[1688391295016,182.643,19.158,19.147,22.091]
[1688391295222,182.643,19.158,19.141,156.8107]
[1688391295526,182.643,19.158,19.142,20.0]
[1688391296334,182.643,19.158,19.144,22.094]
[1688391298019,182.643,19.158,19.142,20.0]
[1688391298221,182.643,19.158,19.144,22.095]
[1688391299624,182.643,19.158,19.143,22.096]
[1688391299823,55.0,19.157,19.143,22.096]
[1688391300030,182.687,19.153,19.142,22.097]
[1688391300926,182.687,19.153,19.132,124.10685381]
[1688391301118,182.752,19.146,19.132,97.5235]
[1688391301435,182.752,19.146,19.134,22.106]
[1688391302737,22.093,19.146,19.134,22.106]
[1688391303532,22.093,19.146,19.135,55.0]
[1688391303831,22.093,19.146,19.138,22.102]
[1688391305528,22.093,19.146,19.139,55.0]
[1688391305726,22.093,19.146,19.141,22.099]
[1688391306433,56.863,19.151,19.141,22.099]
[1688391306649,22.09,19.149,19.142,20.0]
[1688391306821,22.09,19.149,19.143,22.096]
[1688391307932,22.099,19.155,19.143,22.096]
[1688391308134,22.088,19.151,19.143,22.096]
[1688391308526,22.087,19.152,19.147,22.092]
[1688391308836,56.844,19.158,19.147,22.092]
[1688391309336,22.085,19.154,19.147,22.092]
[1688391312535,56.849,19.161,19.147,78.967]
[1688391313029,22.084,19.154,19.147,22.092]
[1688391314333,22.084,19.154,19.146,22.092]
[1688391315421,22.084,19.155,19.147,55.0]
[1688391315620,22.084,19.155,19.149,22.089]
[1688391317731,22.083,19.155,19.149,22.089]
[1688391319440,55.0,19.163,19.15,107.43]
[1688391319737,22.076,19.161,19.155,22.082]
[1688391319937,22.075,19.162,19.155,22.082]
[1688391322138,113.636,19.169,19.155,22.082]
[1688391322324,56.811,19.169,19.156,55.0]
[1688391322639,56.811,19.169,19.159,22.077]
[1688391322640,22.071,19.165,19.159,22.077]
[1688391322936,22.071,19.166,19.159,22.077]
[1688391323624,78.89,19.166,19.158,22.078]
[1688391324440,22.071,19.166,19.158,22.078]
[1688391326624,22.071,19.166,19.159,55.0]
[1688391326820,22.071,19.166,19.161,22.075]
[1688391327729,22.071,19.166,19.159,55.0]
[1688391328530,22.071,19.166,19.159,77.077]
[1688391331424,22.071,19.166,19.153,56.856]
[1688391331631,22.071,19.166,19.152,103.747]
[1688391331632,22.071,19.166,19.155,22.082]
[1688391333644,22.071,19.166,19.148,56.87]
[1688391333836,182.626,19.16,19.142,103.802]
[1688391334042,182.626,19.16,19.142,197.8624]
[1688391334043,55.0,19.159,19.142,197.8624]
[1688391334230,78.939,19.154,19.146,22.092]
[1688391334627,78.939,19.154,19.142,150.9494]
[1688391334833,78.939,19.154,19.145,22.093]
[1688391337645,22.084,19.154,19.145,22.093]
[1688391337848,22.084,19.154,19.146,55.0]
[1688391338152,22.084,19.154,19.148,22.09]
[1688391339943,56.836,19.161,19.149,55.0]
[1688391340143,103.694,19.162,19.152,22.085]
[1688391340744,55.0,19.164,19.152,22.085]
[1688391340745,22.076,19.161,19.152,22.085]
[1688391341140,22.076,19.161,19.153,55.0]
[1688391341452,22.076,19.161,19.155,22.082]
[1688391341648,56.827,19.164,19.155,22.082]
[1688391342352,22.076,19.161,19.155,22.082]
[1688391343936,56.817,19.167,19.159,22.077]
[1688391344656,22.072,19.165,19.156,111.847]
[1688391345360,22.072,19.165,19.159,22.077]
[1688391348765,22.072,19.165,19.158,22.078]
[1688391349259,125.75,19.165,19.155,22.082]
[1688391352163,125.75,19.165,19.153,22.085]
[1688391352455,125.75,19.165,19.143,51.86]
[1688391352655,55.0,19.164,19.149,22.089]
[1688391352843,78.915,19.16,19.15,20.0]
[1688391353044,22.077,19.16,19.152,22.085]
[1688391353247,56.826,19.164,19.152,22.085]
[1688391353551,103.68,19.165,19.152,22.085]
[1688391353552,22.078,19.16,19.152,22.085]
[1688391354354,22.078,19.16,19.144,99.1426]
[1688391354355,22.078,19.16,19.147,56.874]
[1688391354651,22.078,19.16,19.15,22.087]
[1688391360261,22.078,19.16,19.145,56.88]
[1688391360439,22.078,19.16,19.148,22.09]
[1688391363779,22.078,19.16,19.141,97.0842]
[1688391363959,22.078,19.16,19.142,20.0]
[1688391364345,22.078,19.16,19.149,22.089]
[1688391366578,54.558,19.16,19.141,97.0842]
[1688391366866,55.0,19.159,19.144,22.094]
[1688391367170,78.936,19.155,19.144,22.094]
[1688391369564,78.936,19.155,19.141,97.0842]
[1688391369565,78.95,19.151,19.143,22.095]
[1688391369951,78.95,19.151,19.132,56.918]
[1688391370162,55.0,19.154,19.132,56.918]
[1688391370163,182.768,19.145,19.135,22.105]
[1688391370372,78.978,19.145,19.135,22.105]
[1688391370759,182.764,19.145,19.135,22.105]
[1688391371748,22.095,19.145,19.135,22.105]
[1688391372066,56.863,19.151,19.136,55.0]
[1688391372272,58.49231357,19.16,19.136,55.0]
[1688391372273,22.092,19.147,19.14,22.099]
[1688391372456,56.868,19.15,19.14,22.099]
[1688391372875,22.092,19.147,19.14,22.099]
[1688391374553,22.092,19.147,19.139,22.101]
[1688391374752,22.092,19.147,19.131,103.86]
[1688391374973,22.092,19.147,19.134,22.106]
[1688391375473,22.092,19.147,19.133,22.108]
[1688391375773,32.52,19.15,19.131,22.11]
[1688391375774,182.793,19.142,19.131,22.11]
[1688391375964,182.793,19.142,19.132,42.109]
[1688391382589,22.098,19.142,19.132,42.109]
[1688391383080,56.879,19.146,19.132,42.109]
[1688391383283,22.096,19.143,19.132,42.109]
[1688391385882,103.772,19.148,19.132,42.109]
[1688391386173,22.092,19.147,19.137,182.836]
[1688391387482,22.092,19.147,19.137,79.007]
[1688391387680,22.092,19.147,19.137,22.103]
[1688391387873,22.092,19.147,19.136,22.104]
[1688391389872,22.092,19.147,19.136,79.012]
[1688391390071,22.092,19.147,19.137,55.0]
[1688391390370,22.092,19.147,19.14,22.1]
[1688391392188,22.092,19.147,19.139,22.1]
[1688391393173,22.092,19.147,19.138,22.101]
[1688391393379,22.092,19.147,19.139,42.1]
[1688391394693,22.092,19.147,19.139,20.0]
[1688391394874,22.092,19.147,19.134,155.0181]
[1688391396193,22.092,19.147,19.137,22.102]
[1688391396372,22.092,19.147,19.136,22.104]
[1688391396574,22.092,19.147,19.134,98.1061]
[1688391396886,56.853,19.155,19.143,78.982]
[1688391397093,22.086,19.152,19.144,55.0]
[1688391397283,22.086,19.152,19.146,22.092]
[1688391397683,22.086,19.152,19.144,22.094]
[1688391397994,22.086,19.152,19.144,22.095]
[1688391399290,22.086,19.152,19.144,78.979]
[1688391399977,22.086,19.152,19.144,22.095]
[1688391400675,22.085,19.153,19.144,22.095]
[1688391401386,22.082,19.156,19.144,22.095]
[1688391401589,22.079,19.159,19.144,32.93219922]
[1688391401776,22.075,19.162,19.149,182.716]
[1688391401979,160.478,19.168,19.154,78.935]
[1688391402178,103.663,19.168,19.154,78.935]
[1688391402480,22.073,19.164,19.154,78.935]
[1688391406293,56.813,19.169,19.155,55.0]
[1688391406497,22.07,19.167,19.159,78.917]
[1688391407303,22.07,19.167,19.159,22.078]
[1688391407598,22.07,19.167,19.151,97.7432]
[1688391407794,22.07,19.167,19.154,22.083]
[1688391410007,78.904,19.163,19.154,22.083]
[1688391413408,22.074,19.163,19.154,22.083]
[1688391420093,22.074,19.163,19.147,56.874]
[1688391420307,55.0,19.162,19.147,56.874]
[1688391420516,78.923,19.158,19.15,22.087]
[1688391420714,78.923,19.158,19.149,22.089]
[1688391420915,78.923,19.158,19.148,22.09]
[1688391424910,78.923,19.158,19.147,22.091]
[1688391425514,78.923,19.158,19.146,22.093]
[1688391426409,78.923,19.158,19.144,96.0376]
[1688391426606,78.923,19.158,19.142,25.8984449]
[1688391426823,78.923,19.158,19.136,56.906]
[1688391427021,78.923,19.158,19.141,22.098]
[1688391427521,22.086,19.153,19.141,78.991]
[1688391429813,55.0,19.152,19.141,78.991]
[1688391430013,22.087,19.152,19.141,78.991]
[1688391430418,56.846,19.157,19.141,78.991]
[1688391430419,22.081,19.157,19.142,55.0]
[1688391430625,22.08,19.158,19.146,182.747]
[1688391431912,78.923,19.158,19.146,182.747]
[1688391432932,78.923,19.158,19.146,78.969]
[1688391436121,78.923,19.158,19.146,22.092]
[1688391437133,22.079,19.158,19.146,22.092]
[1688391437338,32.52,19.17,19.147,75.0]
[1688391437518,22.078,19.16,19.153,22.084]
[1688391438123,22.078,19.16,19.153,78.941]
[1688391438728,22.077,19.161,19.153,78.941]
[1688391440538,32.52,19.166,19.153,78.941]
[1688391440724,56.809,19.17,19.154,55.0]
[1688391441031,22.07,19.166,19.158,22.078]
[1688391442232,22.07,19.166,19.156,22.081]
[1688391445118,22.07,19.166,19.152,90.0075]